[Event "WYCC 2018 G18"]
[Site "Halkidiki"]
[Date "2018.10.27"]
[Round "8"]
[White "Cosme Contreras, Trilce"]
[Black "Bauyrzhan, Arnash"]
[Result "1-0"]
[ECO "A20"]
[WhiteElo "1829"]
[BlackElo "2011"]
[Annotator "NA"]
[PlyCount "143"]
[EventDate "2018.10.20"]
[EventType "swiss"]
[EventCountry "GRE"]
[SourceTitle "playchess.com"]
[Source "ChessBase"]
[SourceQuality "1"]
[TimeControl "40/5400+30:1800+30"]

1. c4 {[%emt 0:00:00]} e5 {[%emt 0:00:00]} 2. g3 {[%emt 0:00:24]} Nf6 {[%emt 0:00:39]} 3. Bg2 {[%emt 0:00:15]} Nc6 {[%emt 0:00:50]} 4. Nc3 {[%emt 0:00:20]} Bb4 {[%emt 0:01:34]} 5. Nd5 {[%emt 0:01:23]} Bc5 {[%emt 0:01:00]} 6. e3 d6 {[%emt 0:04:16]} 7. Ne2 {[%emt 0:02:01]} O-O {[%emt 0:14:49]} 8. O-O {[%emt 0:00:45]} Bg4 {[%emt 0:04:22]} 9. h3 {[%emt 0:02:35]} Bxe2 {[%emt 0:02:01]} 10. Qxe2 {[%emt 0:00:10]} Nxd5 {[%emt 0:00:15]} 11. cxd5 {[%emt 0:08:07]} Ne7 {[%emt 0:01:31]} 12. Qc4 {[%emt 0:01:41]} Qd7 {[%emt 0:02:05]} 13. b4 {[%emt 0:10:02]} b5 {[%emt 0:03:39]} 14. Qb3 {[%emt 0:03:38]} Bb6 {[%emt 0:00:36]} 15. Bb2 {[%emt 0:00:50]} Rfb8 {[%emt 0:10:46]} 16. Kh2 {[%emt 0:05:55]} a5 {[%emt 0:07:01]} 17. a3 {[%emt 0:00:12]} axb4 {[%emt 0:02:17]} 18. axb4 {[%emt 0:00:04]} Ra4 {[%emt 0:01:17]} 19. f4 {[%emt 0:01:10]} exf4 {[%emt 0:04:41]} 20. gxf4 {[%emt 0:03:18]} Nf5 {[%emt 0:04:15]} 21. Rg1 {[%emt 0:04:06]} Rxa1 {[%emt 0:03:24]} 22. Bxa1 {[%emt 0:00:19]} Re8 {[%emt 0:01:14]} 23. Qb1 {[%emt 0:05:27]} Nh4 {[%emt 0:12:33]} 24. Bh1 {[%emt 0:08:14]} Ng6 {[%emt 0:02:24]} 25. Be4 {[%emt 0:04:50]} Qe7 {[%emt 0:00:48]} 26. Qb2 {[%emt 0:00:57]} Qf8 {[%emt 0:05:28]} 27. Bf5 {[%emt 0:01:08]} Ra8 {[%emt 0:02:56]} 28. h4 {[%emt 0:03:43]} Rxa1 {[%emt 0:01:05]} 29. Qxa1 {[%emt 0:00:40]} Nxh4 {[%emt 0:00:11]} 30. Be4 {[%emt 0:00:14]} f5 {[%emt 0:00:41]} 31. Bh1 {[%emt 0:07:21]} Ng6 {[%emt 0:00:07]} 32. Rg5 {[%emt 0:00:30]} Ne7 {[%emt 0:01:05]} 33. Qf1 {[%emt 0:00:42]} Qe8 {[%emt 0:02:48]} 34. Bf3 {[%emt 0:02:01]} g6 {[%emt 0:00:37]} 35. Qd3 {[%emt 0:01:10]} Kg7 {[%emt 0:01:16]} 36. Rg1 {[%emt 0:00:44]} Nc8 {[%emt 0:02:21]} 37. Qxf5 {[%emt 0:01:39]} Ne7 {[%emt 0:00:31]} 38. Qe6 {[%emt 0:00:45]} Qf7 {[%emt 0:00:41]} 39. Qe4 {[%emt 0:03:57]} Nf5 {[%emt 0:00:14]} 40. Bg4 {[%emt 0:00:00]} Nh4 {[%emt 0:00:00]} 41. Be6 {[%emt 0:00:27]} Qf6 {[%emt 0:02:27]} 42. Kh3 {[%emt 0:02:24]} Kf8 {[%emt 0:03:25]} 43. f5 {[%emt 0:04:20]} g5 {[%emt 0:01:12]} 44. Rxg5 {[%emt 0:01:39]} Qxg5 {[%emt 0:00:38]} 45. Qxh4 {[%emt 0:00:07]} Qxh4+ {[%emt 0:15:28]} 46. Kxh4 {[%emt 0:00:03]} Kg7 {[%emt 0:00:29]} 47. Kg5 {[%emt 0:01:02]} h6+ {[%emt 0:00:25]} 48. Kh5 {[%emt 0:00:02]} Ba7 {[%emt 0:00:57]} 49. Bd7 {[%emt 0:00:22]} Bb6 {[%emt 0:02:34]} 50. Bxb5 {[%emt 0:00:49]} Ba7 {[%emt 0:00:08]} 51. d4 {[%emt 0:02:56]} Bb6 {[%emt 0:00:12]} 52. Bd3 {[%emt 0:00:22]} Ba7 {[%emt 0:00:48]} 53. Kg4 {[%emt 0:03:47]} Kf6 {[%emt 0:00:13]} 54. Kf4 {[%emt 0:00:09]} Bb6 {[%emt 0:00:28]} 55. Be2 {[%emt 0:00:14]} Ba7 {[%emt 0:00:31]} 56. Bg4 {[%emt 0:00:10]} Bb6 {[%emt 0:00:40]} 57. Ke4 {[%emt 0:00:14]} Ba7 {[%emt 0:01:17]} 58. Kd3 {[%emt 0:00:09]} Bb6 {[%emt 0:01:06]} 59. Kc4 {[%emt 0:00:09]} Ba7 {[%emt 0:02:53]} 60. Kb5 {[%emt 0:00:04]} Bb6 {[%emt 0:00:14]} 61. Kc6 {[%emt 0:00:04]} h5 {[%emt 0:02:34]} 62. Bh3 {[%emt 0:00:15]} Ke7 {[%emt 0:01:49]} 63. e4 {[%emt 0:06:46]} Kf6 {[%emt 0:00:08]} 64. Kd7 {[%emt 0:00:13]} h4 {[%emt 0:00:52]} 65. Kc6 {[%emt 0:01:03]} Bxd4 {[%emt 0:01:34]} 66. Kxc7 {[%emt 0:00:04]} Ke5 {[%emt 0:00:11]} 67. b5 {[%emt 0:00:39]} Kxe4 {[%emt 0:01:03]} 68. b6 {[%emt 0:00:36]} Ke5 {[%emt 0:00:31]} 69. b7 {[%emt 0:00:12]} Ba7 {[%emt 0:00:06]} 70. b8=Q {[%emt 0:00:08]} Bxb8+ {[%emt 0:00:03]} 71. Kxb8 {[%emt 0:00:05]} Kxd5 {[%emt 0:00:34]} 72. f6 {[%emt 0:00:08]} 1-0

[Event "WYCC 2018 G18"]
[Site "Halkidiki"]
[Date "2018.10.27"]
[Round "8"]
[White "Cibikova, Sofia Anna"]
[Black "Li, Yilin"]
[Result "1/2-1/2"]
[ECO "B25"]
[WhiteElo "1809"]
[BlackElo "1993"]
[Annotator "NA"]
[PlyCount "75"]
[EventDate "2018.10.20"]
[EventType "swiss"]
[EventCountry "GRE"]
[SourceTitle "playchess.com"]
[Source "ChessBase"]
[SourceQuality "1"]
[TimeControl "40/5400+30:1800+30"]

1. e4 {[%emt 0:00:00]} c5 {[%emt 0:01:29]} 2. Nc3 {[%emt 0:00:00]} Nc6 {[%emt 0:00:10]} 3. g3 {[%emt 0:00:00]} g6 {[%emt 0:00:36]} 4. Bg2 {[%emt 0:00:10]} Bg7 {[%emt 0:00:09]} 5. d3 {[%emt 0:00:30]} d6 {[%emt 0:00:20]} 6. f4 {[%emt 0:00:37]} e6 {[%emt 0:00:19]} 7. Nf3 {[%emt 0:00:52]} Nge7 {[%emt 0:00:27]} 8. Be3 {[%emt 0:02:50]} Nd4 {[%emt 0:04:19]} 9. O-O {[%emt 0:08:32]} O-O {[%emt 0:00:49]} 10. Bf2 {[%emt 0:08:46]} Nec6 {[%emt 0:01:31]} 11. a3 {[%emt 0:03:11]} Rb8 {[%emt 0:01:20]} 12. Rb1 {[%emt 0:05:08]} b6 {[%emt 0:02:13]} 13. Re1 {[%emt 0:13:03]} Bb7 {[%emt 0:02:19]} 14. Bh3 {[%emt 0:07:30]} Nxf3+ {[%emt 0:08:37]} 15. Qxf3 {[%emt 0:00:10]} Nd4 {[%emt 0:00:02]} 16. Qd1 {[%emt 0:01:09]} Re8 {[%emt 0:03:27]} 17. Bg2 {[%emt 0:04:12]} Kh8 {[%emt 0:11:55]} 18. Ne2 {[%emt 0:06:50]} Nxe2+ {[%emt 0:09:16]} 19. Rxe2 {[%emt 0:00:25]} d5 {[%emt 0:02:00]} 20. exd5 {[%emt 0:09:15]} Bxd5 {[%emt 0:03:37]} 21. Bxd5 {[%emt 0:03:17]} Qxd5 {[%emt 0:02:19]} 22. Qf1 {[%emt 0:08:26]} Kg8 {[%emt 0:03:59]} 23. b3 {[%emt 0:02:20]} Rbd8 {[%emt 0:17:22]} 24. Qg2 {[%emt 0:02:16]} Kf8 {[%emt 0:00:25]} 25. Qxd5 {[%emt 0:00:46]} Rxd5 {[%emt 0:01:54]} 26. Kg2 {[%emt 0:02:14]} Bc3 {[%emt 0:05:16]} 27. Be1 {[%emt 0:02:34]} Bd4 {[%emt 0:00:24]} 28. Bd2 {[%emt 0:00:47]} Ke7 {[%emt 0:01:11]} 29. Rbe1 {[%emt 0:01:04]} Kd7 {[%emt 0:00:53]} 30. Kf3 {[%emt 0:00:48]} Kc6 {[%emt 0:02:30]} 31. Be3 {[%emt 0:01:10]} Bc3 {[%emt 0:00:34]} 32. Bd2 {[%emt 0:00:11]} Bb2 {[%emt 0:01:27]} 33. a4 {[%emt 0:00:22]} Bg7 {[%emt 0:00:34]} 34. Re4 {[%emt 0:01:14]} Red8 {[%emt 0:02:15]} 35. R4e2 {[%emt 0:01:32]} Re8 {[%emt 0:02:02]} 36. Re4 {[%emt 0:00:51]} Red8 {[%emt 0:01:04]} 37. R4e3 {[%emt 0:00:24]} Bd4 {[%emt 0:00:16]} 38. R3e2 {[%emt 0:00:09]} 1/2-1/2

[Event "WYCC 2018 G18"]
[Site "Halkidiki"]
[Date "2018.10.27"]
[Round "8"]
[White "Tonso, Liina"]
[Black "Nass, Sara"]
[Result "1-0"]
[ECO "A29"]
[WhiteElo "1805"]
[BlackElo "1986"]
[Annotator "NA"]
[PlyCount "65"]
[EventDate "2018.10.20"]
[EventType "swiss"]
[EventCountry "GRE"]
[SourceTitle "playchess.com"]
[Source "ChessBase"]
[SourceQuality "1"]
[TimeControl "40/5400+30:1800+30"]

1. c4 {[%emt 0:00:00]} e5 {[%emt 0:03:39]} 2. Nc3 {[%emt 0:00:16]} Nf6 {[%emt 0:00:42]} 3. Nf3 {[%emt 0:06:09]} Nc6 {[%emt 0:01:17]} 4. g3 {[%emt 0:02:19]} d5 {[%emt 0:00:37]} 5. cxd5 {[%emt 0:00:48]} Nxd5 {[%emt 0:00:07] LiveBook: 1703 Games} 6. Bg2 {[%emt 0:00:42]} Be6 {[%emt 0:05:37]} 7. O-O $14 {[%emt 0:04:39]} Be7 {[%emt 0:04:24]} 8. d4 {[%emt 0:10:59]} Nxc3 {[%emt 0:16:22]} 9. bxc3 {[%emt 0:00:47]} e4 {[%emt 0:19:57]} 10. Nd2 {[%emt 0:03:47]} f5 {[%emt 0:01:24]} 11. e3 {[%emt 0:04:37]} O-O {[%emt 0:01:39]} 12. c4 {[%emt 0:03:30]} Na5 {[%emt 0:09:14]} 13. Qc2 {[%emt 0:06:59]} c6 {[%emt 0:03:01]} 14. f3 {[%emt 0:12:59]} exf3 {[%emt 0:05:44]} 15. Bxf3 {[%emt 0:00:52]} Rc8 {[%emt 0:00:36]} 16. a4 {[%emt 0:05:09]} b6 {[%emt 0:03:10]} 17. Bb2 {[%emt 0:02:38]} Qe8 {[%emt 0:01:02]} 18. Qd3 {[%emt 0:07:31]} c5 {[%emt 0:06:13]} 19. d5 {[%emt 0:01:30]} Bd7 {[%emt 0:00:15]} 20. e4 {[%emt 0:02:14]} Bf6 {[%emt 0:04:14]} 21. Bc3 {[%emt 0:02:56]} Bxc3 {[%emt 0:00:39]} 22. Qxc3 {[%emt 0:00:09]} fxe4 {[%emt 0:02:12]} 23. Bxe4 {[%emt 0:01:27]} Rxf1+ {[%emt 0:01:01]} 24. Rxf1 {[%emt 0:00:34]} Bxa4 {[%emt 0:04:13]} 25. Qd3 {[%emt 0:01:20]} Qh5 {[%emt 0:04:45]} 26. Bf5 {[%emt 0:01:32]} Re8 {[%emt 0:00:43]} 27. Be6+ {[%emt 0:00:45]} Kh8 {[%emt 0:00:18]} 28. Bf7 {[%emt 0:00:54]} Qe2 {[%emt 0:00:52]} 29. Bxe8 {[%emt 0:00:38]} Qxe8 {[%emt 0:00:03]} 30. Ne4 {[%emt 0:03:29]} Nb7 {[%emt 0:00:55]} 31. Ng5 {[%emt 0:01:08]} g6 {[%emt 0:00:37]} 32. Ne6 {[%emt 0:00:52]} Kg8 {[%emt 0:00:28]} 33. Qf3 {[%emt 0:01:12]} 1-0

[Event "WYCC 2018 G18"]
[Site "Halkidiki"]
[Date "2018.10.27"]
[Round "8"]
[White "Mocanu, Valeria"]
[Black "Belluire, Beatrice"]
[Result "0-1"]
[ECO "B54"]
[WhiteElo "1800"]
[BlackElo "1931"]
[Annotator "NA"]
[PlyCount "92"]
[EventDate "2018.10.20"]
[EventType "swiss"]
[EventCountry "GRE"]
[SourceTitle "playchess.com"]
[Source "ChessBase"]
[SourceQuality "1"]
[TimeControl "40/5400+30:1800+30"]

1. e4 {[%emt 0:00:00]} c5 {[%emt 0:00:00]} 2. Nf3 {[%emt 0:00:00]} d6 {[%emt 0:00:00]} 3. d4 {[%emt 0:00:00]} cxd4 {[%emt 0:00:00]} 4. Nxd4 {[%emt 0:00:00]} Nf6 {[%emt 0:00:00]} 5. f3 {[%emt 0:00:00]} e5 {[%emt 0:00:00]} 6. Nb3 {[%emt 0:00:00]} Be6 7. Nc3 {[%emt 0:15:24]} d5 {[%emt 0:02:15]} 8. exd5 {[%emt 0:01:32]} Nxd5 {[%emt 0:00:14]} 9. Nxd5 {[%emt 0:00:39]} Qxd5 {[%emt 0:03:17]} 10. Qxd5 {[%emt 0:01:46]} Bxd5 {[%emt 0:00:01]} 11. c4 {[%emt 0:01:15]} Be6 {[%emt 0:01:47]} 12. Be3 {[%emt 0:03:08]} Nc6 {[%emt 0:03:26]} 13. a3 {[%emt 0:17:57]} Rd8 {[%emt 0:05:23]} 14. Nd2 {[%emt 0:07:49]} Be7 {[%emt 0:05:50]} 15. Be2 {[%emt 0:06:48]} Nd4 {[%emt 0:00:45]} 16. Rc1 {[%emt 0:08:31]} O-O {[%emt 0:02:11]} 17. Kf2 {[%emt 0:01:15]} Nf5 {[%emt 0:04:10]} 18. Nf1 {[%emt 0:03:55]} Nxe3 {[%emt 0:01:36]} 19. Nxe3 {[%emt 0:00:04]} f5 {[%emt 0:16:14]} 20. Rhd1 {[%emt 0:05:21]} Bc5 {[%emt 0:01:12]} 21. b4 {[%emt 0:02:57]} Bd4 {[%emt 0:00:06]} 22. Rxd4 {[%emt 0:00:19]} Rxd4 {[%emt 0:09:57]} 23. Nd5 {[%emt 0:06:09]} Kf7 {[%emt 0:01:12]} 24. Nc7 {[%emt 0:01:43]} a6 {[%emt 0:01:27]} 25. Nxe6 {[%emt 0:01:03]} Kxe6 {[%emt 0:00:07]} 26. c5 {[%emt 0:00:24]} Kd5 {[%emt 0:02:10]} 27. c6 {[%emt 0:01:50]} b5 {[%emt 0:04:49]} 28. c7 {[%emt 0:07:38]} Rc8 {[%emt 0:00:12]} 29. g3 {[%emt 0:03:58]} Kd6 {[%emt 0:00:31]} 30. Ke3 {[%emt 0:00:16]} Rxc7 {[%emt 0:00:50]} 31. Rxc7 {[%emt 0:00:06]} Kxc7 {[%emt 0:00:02]} 32. f4 {[%emt 0:02:01]} Re4+ {[%emt 0:00:25]} 33. Kf3 {[%emt 0:00:10]} Rxe2 {[%emt 0:01:25]} 34. Kxe2 {[%emt 0:00:05]} e4 {[%emt 0:00:00]} 35. g4 {[%emt 0:00:25]} g6 {[%emt 0:00:24]} 36. gxf5 {[%emt 0:00:40]} gxf5 {[%emt 0:00:03]} 37. Ke3 {[%emt 0:00:12]} Kc6 {[%emt 0:00:54]} 38. Kd4 {[%emt 0:00:05]} Kd6 {[%emt 0:00:05]} 39. h3 {[%emt 0:00:08]} h6 {[%emt 0:00:08]} 40. h4 {[%emt 0:00:00]} h5 {[%emt 0:00:00]} 41. Ke3 {[%emt 0:00:38]} Kd5 {[%emt 0:00:02]} 42. Kd2 {[%emt 0:00:16]} Kd4 {[%emt 0:00:09]} 43. Ke2 {[%emt 0:00:04]} Kc3 {[%emt 0:00:21]} 44. Ke3 {[%emt 0:00:14]} Kb3 {[%emt 0:00:17]} 45. Kd2 {[%emt 0:02:27]} Kxa3 {[%emt 0:01:49]} 46. Kc3 {[%emt 0:00:05]} Ka4 {[%emt 0:00:07]} 0-1

[Event "WYCC 2018 G18"]
[Site "Halkidiki"]
[Date "2018.10.27"]
[Round "8"]
[White "Martos Amiguet, Valentina"]
[Black "Prakapuk, Vera"]
[Result "0-1"]
[ECO "D00"]
[WhiteElo "1775"]
[BlackElo "1949"]
[Annotator "NA"]
[PlyCount "94"]
[EventDate "2018.10.20"]
[EventType "swiss"]
[EventCountry "GRE"]
[SourceTitle "playchess.com"]
[Source "ChessBase"]
[SourceQuality "1"]
[TimeControl "40/5400+30:1800+30"]

1. d4 {[%emt 0:00:00]} d5 {[%emt 0:00:00]} 2. Bf4 {[%emt 0:00:00]} Nf6 {[%emt 0:00:00]} 3. e3 {[%emt 0:00:15]} c5 {[%emt 0:00:04]} 4. c3 {[%emt 0:00:00]} Nc6 {[%emt 0:00:09]} 5. Nf3 {[%emt 0:00:00]} Qb6 {[%emt 0:00:19]} 6. Qb3 {[%emt 0:01:31]} c4 {[%emt 0:00:09]} 7. Qc2 {[%emt 0:00:06]} Bf5 {[%emt 0:01:38]} 8. Qc1 {[%emt 0:00:10]} e6 {[%emt 0:00:25]} 9. Nbd2 {[%emt 0:00:07]} Qd8 {[%emt 0:00:36]} 10. Be2 {[%emt 0:00:42]} Be7 {[%emt 0:00:29]} 11. h3 {[%emt 0:00:05]} h6 {[%emt 0:00:10]} 12. O-O {[%emt 0:00:15]} O-O 13. b3 {[%emt 0:02:43]} b5 {[%emt 0:06:59]} 14. a4 {[%emt 0:04:24]} a6 {[%emt 0:02:41]} 15. Qb2 {[%emt 0:03:15]} Qd7 {[%emt 0:12:21]} 16. Ra2 {[%emt 0:04:33]} Bd6 {[%emt 0:04:16]} 17. Ne5 $11 {[%emt 0:02:07]} Qc7 {[%emt 0:02:54]} 18. Nxc6 {[%emt 0:02:18]} Bxf4 {[%emt 0:04:27]} 19. exf4 {[%emt 0:01:15]} Qxc6 {[%emt 0:00:05]} 20. Nf3 {[%emt 0:03:48]} Ne4 {[%emt 0:03:09]} 21. Ne5 {[%emt 0:04:24]} Qc7 {[%emt 0:00:22]} 22. axb5 {[%emt 0:18:11]} axb5 {[%emt 0:03:25]} 23. Rxa8 {[%emt 0:06:36]} Rxa8 {[%emt 0:00:05]} 24. bxc4 {[%emt 0:00:57]} bxc4 {[%emt 0:01:04]} 25. Bh5 {[%emt 0:08:03]} f6 {[%emt 0:06:04]} 26. Ng6 {[%emt 0:05:22]} Qf7 {[%emt 0:09:27]} 27. Qb6 {[%emt 0:09:29]} Bxg6 {[%emt 0:00:24]} 28. Bxg6 {[%emt 0:00:10]} Qxg6 {[%emt 0:00:06]} 29. Qxe6+ {[%emt 0:00:06]} Qf7 {[%emt 0:00:09]} 30. Qc6 {[%emt 0:00:22]} Rd8 {[%emt 0:01:28]} 31. Rb1 {[%emt 0:00:55]} Qd7 {[%emt 0:02:02]} 32. Qa6 {[%emt 0:00:58]} Qf5 {[%emt 0:04:52]} 33. Rb7 {[%emt 0:06:36]} Qxf4 {[%emt 0:01:55]} 34. Qe6+ {[%emt 0:00:35]} Kh8 {[%emt 0:00:20]} 35. f3 {[%emt 0:06:27]} Ra8 {[%emt 0:03:03]} 36. Rb1 {[%emt 0:00:32]} Nxc3 {[%emt 0:00:19]} 37. Re1 {[%emt 0:01:53]} Qxd4+ {[%emt 0:00:59]} 38. Kh1 {[%emt 0:00:15]} Qf2 {[%emt 0:03:01]} 39. Kh2 {[%emt 0:00:50]} Qc5 {[%emt 0:02:35]} 40. Qd7 {[%emt 0:00:00]} d4 {[%emt 0:00:00]} 41. Re7 {[%emt 0:03:55]} Rg8 {[%emt 0:02:21]} 42. f4 {[%emt 0:01:17]} d3 {[%emt 0:02:55]} 43. f5 {[%emt 0:00:40]} d2 {[%emt 0:00:31]} 44. Re8 {[%emt 0:02:55]} d1=Q {[%emt 0:00:40]} 45. Rxg8+ {[%emt 0:02:01]} Kxg8 {[%emt 0:00:07]} 46. Qe8+ {[%emt 0:01:09]} Qf8 {[%emt 0:00:11]} 47. Qe6+ {[%emt 0:00:08]} Kh8 {[%emt 0:00:06]} 0-1

[Event "WYCC 2018 G18"]
[Site "Halkidiki"]
[Date "2018.10.27"]
[Round "8"]
[White "Perry, Tal"]
[Black "Vanduyfhuys, Daria"]
[Result "1/2-1/2"]
[ECO "B21"]
[WhiteElo "1702"]
[BlackElo "2058"]
[Annotator "NA"]
[PlyCount "126"]
[EventDate "2018.10.20"]
[EventType "swiss"]
[EventCountry "GRE"]
[SourceTitle "playchess.com"]
[Source "ChessBase"]
[SourceQuality "1"]
[TimeControl "40/5400+30:1800+30"]

1. e4 {[%emt 0:00:00]} c5 {[%emt 0:00:00]} 2. d4 {[%emt 0:00:00]} cxd4 {[%emt 0:00:00]} 3. c3 {[%emt 0:00:00]} dxc3 {[%emt 0:00:00]} 4. Nxc3 {[%emt 0:00:00]} e6 {[%emt 0:00:06]} 5. Nf3 {[%emt 0:00:02]} a6 {[%emt 0:00:11]} 6. Bc4 {[%emt 0:01:12]} Nc6 {[%emt 0:00:23]} 7. a3 {[%emt 0:00:50]} Nge7 {[%emt 0:00:22]} 8. O-O {[%emt 0:00:31]} b5 {[%emt 0:04:54]} 9. Ba2 {[%emt 0:01:51]} Ng6 $15 {[%emt 0:04:33]} 10. Qe2 {[%emt 0:01:03]} Be7 {[%emt 0:00:59]} 11. Rd1 {[%emt 0:01:36]} O-O {[%emt 0:02:58]} 12. Be3 {[%emt 0:01:20]} Bb7 {[%emt 0:02:45]} 13. Rac1 {[%emt 0:03:10]} Rc8 {[%emt 0:04:40]} 14. Qd3 {[%emt 0:10:34]} Nge5 {[%emt 0:13:56]} 15. Nxe5 {[%emt 0:01:12]} Nxe5 {[%emt 0:00:11]} 16. Qd4 {[%emt 0:00:54]} Bf6 {[%emt 0:02:02]} 17. Qa7 {[%emt 0:02:06]} Bc6 {[%emt 0:15:52]} 18. Qxa6 {[%emt 0:03:46]} Rb8 {[%emt 0:18:31]} 19. f3 {[%emt 0:04:01]} Bg5 {[%emt 0:03:53]} 20. Qa7 {[%emt 0:02:47]} Bxe3+ {[%emt 0:04:13]} 21. Qxe3 {[%emt 0:00:04]} Qb6 {[%emt 0:01:05]} 22. Qxb6 {[%emt 0:00:29]} Rxb6 {[%emt 0:00:04]} 23. Ne2 {[%emt 0:01:21]} Nc4 {[%emt 0:04:00]} 24. Bxc4 {[%emt 0:00:20]} bxc4 {[%emt 0:00:03]} 25. Rd2 {[%emt 0:00:37]} d5 {[%emt 0:04:09]} 26. exd5 {[%emt 0:00:55]} exd5 {[%emt 0:00:12]} 27. Nf4 {[%emt 0:01:37]} Rb5 {[%emt 0:01:48]} 28. Ne2 {[%emt 0:04:17]} Ba8 {[%emt 0:03:39]} 29. Nc3 {[%emt 0:01:23]} Ra5 {[%emt 0:00:45]} 30. Rcd1 {[%emt 0:00:43]} Rd8 {[%emt 0:00:58]} 31. Rd4 {[%emt 0:00:34]} Rc5 {[%emt 0:00:50]} 32. Na4 {[%emt 0:02:45]} Rc7 {[%emt 0:04:28]} 33. Nb6 {[%emt 0:01:08]} Kf8 {[%emt 0:00:17]} 34. Rxc4 {[%emt 0:03:25]} Rxc4 {[%emt 0:01:04]} 35. Nxc4 {[%emt 0:00:03]} Rb8 {[%emt 0:01:05]} 36. Ne3 {[%emt 0:02:31]} Rxb2 {[%emt 0:00:37]} 37. Nxd5 {[%emt 0:00:51]} Bxd5 {[%emt 0:00:06]} 38. Rxd5 {[%emt 0:00:12]} Ra2 {[%emt 0:00:05]} 39. Rd8+ {[%emt 0:03:49]} Ke7 {[%emt 0:00:07]} 40. Ra8 {[%emt 0:00:00]} h5 {[%emt 0:00:00]} 41. h4 {[%emt 0:01:28]} g6 {[%emt 0:02:40]} 42. a4 {[%emt 0:01:02]} Ke6 {[%emt 0:00:35]} 43. Kh2 {[%emt 0:02:31]} Ke5 {[%emt 0:01:04]} 44. Kg3 {[%emt 0:01:21]} Kf5 {[%emt 0:01:31]} 45. a5 {[%emt 0:01:48]} Ra4 {[%emt 0:02:16]} 46. a6 {[%emt 0:00:42]} Kf6 {[%emt 0:00:21]} 47. a7 {[%emt 0:01:43]} Kf5 {[%emt 0:01:46]} 48. Kf2 {[%emt 0:03:15]} Ra3 {[%emt 0:01:23]} 49. g3 {[%emt 0:13:39]} Kf6 {[%emt 0:00:28]} 50. g4 {[%emt 0:02:59]} hxg4 {[%emt 0:00:41]} 51. fxg4 {[%emt 0:00:05]} Kg7 {[%emt 0:00:03]} 52. h5 {[%emt 0:01:26]} gxh5 {[%emt 0:00:21]} 53. gxh5 {[%emt 0:00:10]} f5 {[%emt 0:00:38]} 54. h6+ {[%emt 0:00:56]} Kh7 {[%emt 0:00:03]} 55. Ke2 {[%emt 0:01:45]} f4 {[%emt 0:00:07]} 56. Kf2 {[%emt 0:01:01]} Ra2+ {[%emt 0:00:55]} 57. Kf3 {[%emt 0:00:20]} Ra3+ {[%emt 0:00:20]} 58. Kxf4 {[%emt 0:00:31]} Ra4+ {[%emt 0:00:04]} 59. Ke5 {[%emt 0:03:28]} Ra1 {[%emt 0:00:21]} 60. Kd5 {[%emt 0:01:58]} Rd1+ {[%emt 0:00:39]} 61. Kc4 {[%emt 0:00:44]} Rc1+ {[%emt 0:00:16]} 62. Kb3 {[%emt 0:01:21]} Ra1 {[%emt 0:00:08]} 63. Kb2 {[%emt 0:04:32]} Ra6 {[%emt 0:00:23]} 1/2-1/2

[Event "WYCC 2018 G18"]
[Site "Halkidiki"]
[Date "2018.10.27"]
[Round "8"]
[White "Abeysinghe, H M H Janandani"]
[Black "Caballero Quijano, Mitzy Mishell"]
[Result "0-1"]
[ECO "C00"]
[WhiteElo "1698"]
[BlackElo "1956"]
[Annotator "NA"]
[PlyCount "146"]
[EventDate "2018.10.20"]
[EventType "swiss"]
[EventCountry "GRE"]
[SourceTitle "playchess.com"]
[Source "ChessBase"]
[SourceQuality "1"]
[TimeControl "40/5400+30:1800+30"]

1. e4 e6 2. d3 d5 3. Nc3 Nf6 4. exd5 exd5 5. Nf3 c5 6. g3 Nc6 7. Bg2 Be7 8. O-O h6 9. a3 O-O 10. Bf4 d4 11. Ne2 Nd5 12. Bd2 Be6 13. Nf4 Nxf4 14. Bxf4 Bd5 15. Re1 Bf6 16. Ne5 Bxe5 17. Bxe5 Qd7 18. Bf4 Rae8 19. Bxd5 Qxd5 20. Qg4 Kh7 21. Bd2 Ne5 22. Qf5+ g6 23. Rxe5 Rxe5 24. Qh3 Rh5 25. Qg2 Re8 26. Qxd5 Rxd5 27. Kf1 g5 28. f3 Kg6 29. Kf2 f5 30. f4 Rd6 31. Re1 Rxe1 32. Kxe1 gxf4 33. Bxf4 Rb6 34. b3 Ra6 35. Bc1 h5 36. h4 Kf6 37. Kf2 Ke5 38. Kf3 Re6 39. Bf4+ Kd5 40. Bd2 b5 41. c4+ dxc3 42. Bxc3 c4 43. dxc4+ bxc4 44. bxc4+ Kxc4 45. Bb4 Re4 46. Bf8 a5 47. Bd6 Kd3 48. Bc5 Kd2 49. Bb6 Ra4 50. Bc5 Rc4 51. Bd6 Ke1 52. Ke3 Re4+ 53. Kf3 Kf1 54. Bc7 Ra4 55. Bd6 Kg1 56. Bc5+ Kh2 57. Bd6 Kh3 58. Be7 Rd4 59. Bc5 Rd3+ 60. Kf4 Rxg3 61. Kxf5 Kxh4 62. Bf2 Kh3 63. Bxg3 Kxg3 64. Ke4 h4 65. Kd4 h3 66. Kc4 h2 67. Kb5 h1=Q 68. Kxa5 Qa8+ 69. Kb4 Kf4 70. a4 Ke5 71. Kb5 Kd5 72. a5 Qb7+ 73. Ka4 Kc4 0-1

[Event "WYCC 2018 G18"]
[Site "Halkidiki"]
[Date "2018.10.27"]
[Round "8"]
[White "Ni Mhuireagain, Eibhia"]
[Black "Sevilla, Julia"]
[Result "0-1"]
[ECO "B99"]
[WhiteElo "1655"]
[BlackElo "1947"]
[Annotator "NA"]
[PlyCount "72"]
[EventDate "2018.10.20"]
[EventType "swiss"]
[EventCountry "GRE"]
[SourceTitle "playchess.com"]
[Source "ChessBase"]
[SourceQuality "1"]
[TimeControl "40/5400+30:1800+30"]

1. e4 {[%emt 0:00:00]} c5 {[%emt 0:00:00]} 2. Nf3 {[%emt 0:00:00]} d6 {[%emt 0:00:00]} 3. d4 {[%emt 0:00:00]} cxd4 {[%emt 0:00:00]} 4. Nxd4 {[%emt 0:00:00]} Nf6 {[%emt 0:00:00]} 5. Nc3 {[%emt 0:00:00]} a6 {[%emt 0:00:00]} 6. Bg5 {[%emt 0:00:05]} e6 {[%emt 0:00:00]} 7. f4 {[%emt 0:00:09]} Be7 {[%emt 0:00:00]} 8. Qf3 {[%emt 0:01:17]} Qc7 {[%emt 0:00:00]} 9. O-O-O {[%emt 0:00:09]} Nbd7 {[%emt 0:01:08]} 10. Bd3 {[%emt 0:00:15]} h6 {[%emt 0:00:04]} 11. Qh3 {[%emt 0:00:10]} b5 {[%emt 0:06:56]} 12. Nxe6 {[%emt 0:01:49]} fxe6 {[%emt 0:10:59]} 13. e5 {[%emt 0:01:05]} Nf8 {[%emt 0:02:52]} 14. exf6 {[%emt 0:07:20]} Bxf6 {[%emt 0:01:00]} 15. Ne4 {[%emt 0:08:40]} d5 $18 {[%emt 0:06:41]} (15... Bxg5 16. Nxg5 (16. fxg5 d5 $16) 16... Ra7) 16. Nxf6+ {[%emt 0:05:47]} gxf6 {[%emt 0:00:03]} 17. Qh5+ {[%emt 0:04:08]} Qf7 {[%emt 0:00:30]} 18. Qxf7+ {[%emt 0:00:58]} Kxf7 {[%emt 0:00:01]} 19. Bh4 {[%emt 0:00:38]} Rg8 {[%emt 0:05:35]} 20. Rd2 {[%emt 0:04:17]} Bb7 {[%emt 0:00:28]} 21. Re1 {[%emt 0:01:12]} Rd8 {[%emt 0:04:16]} 22. Rde2 {[%emt 0:01:44]} Rd7 {[%emt 0:09:02]} 23. h3 {[%emt 0:06:36]} h5 {[%emt 0:21:43]} 24. Rg1 {[%emt 0:06:21]} d4 {[%emt 0:04:55]} 25. Be1 {[%emt 0:01:48]} Bd5 {[%emt 0:06:35]} 26. g3 {[%emt 0:05:28]} Ng6 {[%emt 0:09:27]} 27. Bd2 {[%emt 0:06:55]} Nh4 {[%emt 0:03:27]} 28. Be4 {[%emt 0:00:43]} Bxe4 {[%emt 0:00:34]} 29. Rxe4 {[%emt 0:00:06]} Nf3 {[%emt 0:01:31]} 30. Rg2 {[%emt 0:00:29]} h4 {[%emt 0:02:10]} 31. g4 {[%emt 0:02:23]} f5 {[%emt 0:00:09]} 32. Ree2 {[%emt 0:00:23]} fxg4 {[%emt 0:00:14]} 33. Rxg4 {[%emt 0:01:30]} Rxg4 {[%emt 0:00:12]} 34. hxg4 {[%emt 0:00:04]} h3 {[%emt 0:00:23]} 35. Rf2 {[%emt 0:00:57]} h2 {[%emt 0:00:12]} 36. Rf1 {[%emt 0:00:08]} Ng1 {[%emt 0:00:05]} 0-1